{"text_format":"1","workbook":"xlsx","n_sheets":6,"sheets":["Cover","K-5 to K-7","Middle and K-8","High School","SG Scale","SchList"],"not_rendered":{"charts":0,"images":0,"macros":1,"external_links":0,"defined_names":6,"comments":0,"pivot_tables":0},"unopened":[],"bounds":{"document_bytes":16777216,"sheet_cells":100000,"rows_first":2000,"rows_last":500,"rows_between":2000,"halvings":0,"cell_chars":16384,"cell_head_chars":4096},"cells_cut":0,"cells_raw":0,"read":"whole","date_system":"1900"}

{"sheet":"Cover","index":0,"n_rows":0,"n_cols":0,"rows_kept":0,"cut":false,"hidden":false,"merged":[]}

{"sheet":"K-5 to K-7","index":1,"n_rows":45,"n_cols":8,"rows_kept":45,"cut":false,"hidden":false,"merged":[[1,1,1,7],[0,0,0,7],[35,0,35,7],[29,0,29,7],[15,0,15,7],[34,4,34,6],[34,0,34,2],[28,0,28,2],[14,0,14,2],[22,6,26,7],[8,6,12,7],[33,0,33,1],[27,0,27,1],[33,4,33,5],[13,0,13,1],[36,0,36,5],[36,6,38,7],[37,0,37,3],[37,4,37,5],[44,1,44,2],[44,4,44,5],[43,1,43,2],[43,3,43,4],[42,1,42,2],[42,3,42,4],[40,0,40,5],[41,0,41,2],[41,3,41,5],[39,4,39,5]]}
["Direction: Click in Cell H2 below and at right click on the drop-down arrow to select school"]
["School:","Click here and select school from the drop-down arrow at right"]
["Reading","Grade","2014 Accountability Students","2014 Performance Point","2014 No. Tested for Learning Gains","2014 Learning Gains Points","2014 No. Tested for Low25%","2014 Low25% Learning Gains Points"]
["FCAT 2.0",3]
["FCAT 2.0",4]
["FCAT 2.0",5]
["FCAT 2.0",6]
["FCAT 2.0",7]
["FAA",3,null,null,null,null,"NA"]
["FAA",4]
["FAA",5]
["FAA",6]
["FAA",7]
["Total Points",null,{"$f":"SUM(C4:C13)","v":0},{"$f":"SUM(D4:D13)","v":0},0,0,0,0]
["Points for School Grade",null,null,{"$f":"IFERROR(ROUND(D14/C14*100,0),\"\")","v":""},null,{"$f":"IFERROR(ROUND(F14/E14*100,0),\"\")","v":""},null,{"$f":"IFERROR(ROUND(H14/G14*100,0),\"\")","v":""}]
[]
["Math","Grade","2014 Accountability Students","2014 Performance Point","2014 No. Tested for Learning Gains","2014 Learning Gains Points","2014 No. Tested for Low25%","2014 Low25% Learning Gains Points"]
["FCAT 2.0",3]
["FCAT 2.0",4]
["FCAT 2.0",5]
["FCAT 2.0",6]
["FCAT 2.0",7]
["FAA",3,null,null,null,null,"NA"]
["FAA",4]
["FAA",5]
["FAA",6]
["FAA",7]
["Total Points",null,{"$f":"SUM(C18:C27)","v":0},{"$f":"SUM(D18:D27)","v":0},0,0,{"$f":"SUM(G18:G27)","v":0},{"$f":"SUM(H18:H27)","v":0}]
["Points for School Grade",null,null,{"$f":"IFERROR(ROUND(D28/C28*100,0),\"\")","v":""},null,{"$f":"IFERROR(ROUND(F28/E28*100,0),\"\")","v":""},null,{"$f":"IFERROR(ROUND(H28/G28*100,0),\"\")","v":""}]
[]
["Writing","Grade","2014 Accountability Students","2014 Performance Point","Science","Grade","2014 Accountability Students","2014 Performance Point"]
["FCAT2.0",4,null,null,"FCAT2.0"," 5"]
["FAA",4,null,null,"FAA",5]
["Total Points",null,{"$f":"SUM(C32:C33)","v":0},{"$f":"SUM(D32:D33)","v":0},"Total Points",null,{"$f":"SUM(G32:G33)","v":0},{"$f":"SUM(H32:H33)","v":0}]
["Points for School Grade",null,null,{"$f":"IFERROR(ROUND(D34/C34*100,0),\"\")","v":""},"Points for School Grade",null,null,{"$f":"IFERROR(ROUND(H34/G34*100,0),\"\")","v":""}]
[]
["2014 Estimating School Grade",null,null,null,null,null,"School Grade Scale Score Points"]
["Performance Points",null,null,null,"Middle School Acceleration Points"]
["Reading","Math","Writing","Science","Participation","Performance"]
[{"$f":"D15","v":""},{"$f":"D29","v":""},{"$f":"D35","v":""},{"$f":"H35","v":""},"NA",null,"Point","Grade"]
["Learning Gains",null,null,null,null,null,"525-800","A"]
["Overall",null,null,"Low 25% LG",null,null,"495-524","B"]
["Reading","Math",null,"Reading",null,"Math","435-494","C"]
[{"$f":"F15","v":""},{"$f":"F29","v":""},null,{"$f":"H15","v":""},null,{"$f":"H29","v":""},"395-434","D"]
["Total Points",{"$f":"SUM(A40:D40,A44:F44)","v":0},null,"School Grade",{"$f":"IF(OR(B45=0,B45=\"\"),\"\",VLOOKUP(B45,'SG Scale'!$A$2:$B$6,2,TRUE))","v":""},null,"0-394","F"]

{"sheet":"Middle and K-8","index":2,"n_rows":51,"n_cols":8,"rows_kept":51,"cut":false,"hidden":false,"merged":[[50,3,50,4],[50,1,50,2],[9,6,14,7],[25,6,30,7],[46,0,46,5],[47,0,47,2],[47,3,47,5],[48,1,48,2],[48,3,48,4],[49,1,49,2],[49,3,49,4],[40,0,40,2],[40,4,40,6],[41,0,41,7],[42,0,42,5],[42,6,44,7],[43,0,43,3],[43,4,43,5],[0,0,0,7],[1,1,1,7],[16,0,16,2],[17,0,17,7],[32,0,32,2],[33,0,33,7],[39,4,39,5],[39,0,39,1],[31,0,31,1],[15,0,15,1]]}
["Direction: Click in Cell H2 below and at right click on the drop-down arrow to select school"]
["School:","Click here and select school from the drop-down arrow at right"]
["Reading","Grade","2014 Accountability Students","2014 Performance Point","2014 No. Tested for Overall Learning Gains","2014 Overall Learning Gains Points","2014 No. Tested for Low25%","2014 Low25% Learning Gains Points"]
["FCAT 2.0",3]
["FCAT 2.0",4]
["FCAT 2.0",5]
["FCAT 2.0",6]
["FCAT 2.0",7]
["FCAT 2.0",8]
["FAA",3,null,null,null,null,"NA"]
["FAA",4]
["FAA",5]
["FAA",6]
["FAA",7]
["FAA",8]
["Total Points",null,{"$f":"SUM(C4:C15)","v":0},{"$f":"SUM(D4:D15)","v":0},0,0,0,0]
["Points for School Grade",null,null,{"$f":"IFERROR(ROUND(D16/C16*100,0),\"\")","v":""},null,{"$f":"IFERROR(ROUND(F16/E16*100,0),\"\")","v":""},null,{"$f":"IFERROR(ROUND(H16/G16*100,0),\"\")","v":""}]
[]
["Math","Grade","2014 Accountability Students","2014 Performance Point","2014 No. Tested for Learning Gains","2014 Learning Gains Points","2014 No. Tested for Low25%","2014 Low25% Learning Gains Points"]
["FCAT 2.0",3]
["FCAT 2.0",4]
["FCAT 2.0",5]
["FCAT 2.0/EOC",6]
["FCAT 2.0/EOC",7]
["FCAT 2.0/EOC",8]
["FAA",3,null,null,null,null,"NA"]
["FAA",4]
["FAA",5]
["FAA",6]
["FAA",7]
["FAA",8]
["Total Points",null,{"$f":"SUM(C20:C31)","v":0},{"$f":"SUM(D20:D31)","v":0},0,0,{"$f":"SUM(G20:G31)","v":0},{"$f":"SUM(H20:H31)","v":0}]
["Points for School Grade",null,null,{"$f":"IFERROR(ROUND(D32/C32*100,0),\"\")","v":""},null,{"$f":"IFERROR(ROUND(F32/E32*100,0),\"\")","v":""},null,{"$f":"IFERROR(ROUND(H32/G32*100,0),\"\")","v":""}]
[]
["Writing","Grade","2014 Accountability Students","2014 Performance Point","Science","Grade","2014 Accountability Students","2014 Performance Point"]
["FCAT2.0",4,null,null,"FCAT2.0"," 5"]
["FCAT2.0",8,null,null,"FCAT2.0/EOC",8]
["FAA",4,null,null,"FAA",5]
["FAA",8,null,null,"FAA",8]
["Total Points",null,{"$f":"SUM(C36:C39)","v":0},{"$f":"SUM(D36:D39)","v":0},"Total Points",null,{"$f":"SUM(G36:G39)","v":0},{"$f":"SUM(H36:H39)","v":0}]
["Points for School Grade",null,null,{"$f":"IFERROR(ROUND(D40/C40*100,0),\"\")","v":""},"Points for School Grade",null,null,{"$f":"IFERROR(ROUND(H40/G40*100,0),\"\")","v":""}]
[]
["2014 Estimating School Grade (Note: ",null,null,null,null,null,"School Grade Scale Score Points"]
["Performance Points",null,null,null,"Middle School Acceleration Points"]
["Reading","Math","Writing","Science","Participation","Performance"]
[{"$f":"D17","v":""},{"$f":"D33","v":""},{"$f":"D41","v":""},{"$f":"H41","v":""},null,null,"Point","Grade"]
["Learning Gains",null,null,null,null,null,"590-900","A"]
["Overall",null,null,"Low 25% LG",null,null,"560-589","B"]
["Reading","Math",null,"Reading",null,"Math","490-559","C"]
[{"$f":"F17","v":""},{"$f":"F33","v":""},null,{"$f":"H17","v":""},null,{"$f":"H33","v":""},"445-489","D"]
["Total Points",{"$f":"IF(OR(E46=\"\",F46=\"\"),\"Missing Middle School Accelration\",SUM(A46:F46,A50:F50))","v":"Missing Middle School Accelration"},null,"School Grade",null,{"$f":"IF(OR(B51=0,B51=\"\",B51=\"Missing Middle School Accelration\"),\"\",VLOOKUP(B51,'SG Scale'!$A$9:$B$13,2,TRUE))","v":""},"0- 444","F"]

{"sheet":"High School","index":3,"n_rows":39,"n_cols":9,"rows_kept":39,"cut":false,"hidden":false,"merged":[[9,0,9,8],[18,7,18,8],[19,7,19,8],[7,7,7,8],[8,7,8,8],[10,7,10,8],[11,7,11,8],[12,7,12,8],[13,6,14,8],[8,0,8,2],[15,7,15,8],[16,7,16,8],[17,0,17,8],[36,0,36,4],[35,0,35,4],[23,0,23,8],[35,5,38,5],[35,6,38,6],[35,7,38,8],[28,8,29,8],[32,7,33,7],[26,0,26,8],[27,0,27,8],[31,8,33,8],[28,4,28,7],[31,0,31,7],[32,0,32,1],[32,2,32,3],[32,4,32,5],[32,6,33,6],[16,0,16,2],[22,0,22,2],[22,4,22,6],[28,0,28,3],[24,2,24,3],[25,2,25,3],[24,4,24,5],[25,4,25,5],[24,6,24,8],[25,6,25,8],[21,7,21,8],[22,7,22,8],[20,7,20,8],[0,0,0,8],[2,7,2,8],[3,7,3,8],[4,7,4,8],[5,6,6,8],[1,1,1,8]]}
["Direction: Click in Cell H2 below and at right click on the drop-down arrow to select school"]
["School:","Click here and select school from the drop-down arrow at right"]
["Reading","Grade","2014 Accountability Students","2014 Performance Point","2014 No. Tested for Learning Gains","2014 Learning Gains Points","2014 No. Tested for Low25%","2014 Low25% Learning Gains Points"]
["Reading-FCAT 2.0",9]
["Reading-FCAT 2.0",10]
["Reading-FAA",9,null,null,null,null,"NA"]
["Reading-FAA",10]
["Total Points",null,{"$f":"SUM(C4:C7)","v":0},0,0,0,0,0]
["Points for School Grade",null,null,{"$f":"IFERROR(ROUND(D8/C8*100,0),\"\")","v":""},null,{"$f":"IFERROR(ROUND(F8/E8*100,0),\"\")","v":""},null,{"$f":"IFERROR(ROUND(H8/G8*100,0),\"\")","v":""}]
[]
["Math","Grade","2014 Accountability Students","2014 Performance Point","2014 No. Tested for Learning Gains","2014 Learning Gains Points","2014 No. Tested for Low25%","2014 Low25% Learning Gains Points"]
["Algebra","9-12"]
["Geometry","9-12"]
["Math-FAA",9,null,null,null,null,"NA"]
["Math-FAA",10]
["Total Points",null,{"$f":"SUM(C12:C15)","v":0},0,0,0,0,0]
["Points for School Grade",null,null,{"$f":"IFERROR(ROUND(D16/C16*100,0),\"\")","v":""},null,{"$f":"IFERROR(ROUND(F16/E16*100,0),\"\")","v":""},null,{"$f":"IFERROR(ROUND(H16/G16*100,0),\"\")","v":""}]
[]
["Writing","Grade","2014 Accountability Students","2014 Performance Point","Science","Grade","2014 Accountability Students","2014 Performance Point"]
["Witing-FCAT2.0",10,null,null,"Biology EOC","9-12"]
["Witing-FAA",10,null,null,"Science-FAA",10]
["Total Points",null,{"$f":"SUM(C20:C21)","v":0},{"$f":"SUM(D20:D21)","v":0},"Total Points",null,{"$f":"SUM(G20:G21)","v":0},{"$f":"SUM(H20:H21)","v":0}]
["Points for School Grade",null,null,{"$f":"IFERROR(ROUND(D22/C22*100,0),\"\")","v":""},"Points for School Grade",null,null,{"$f":"IFERROR(ROUND(H22/G22*100,0),\"\")","v":""}]
[]
["Social Studies","Grade","2014 Accountability Students",null,"2014 Performance Point",null,"Points for School Grade"]
["US. History EOC","9-12",null,null,null,null,{"$f":"IFERROR(ROUND(E26/C26*100,0),\"\")","v":""}]
["2014 Estimating School Grade"]
["Assessment Component (800 Points)"]
["Performance Points",null,null,null,"Learning Gains",null,null,null,"Total Points"]
["Reading","Math","Writing","Science","Reading-All","Math-All","Low25%-Reading","Low25%-Math"]
[{"$f":"D9","v":""},{"$f":"D17","v":""},{"$f":"D23","v":""},{"$f":"H23","v":""},{"$f":"F9","v":""},{"$f":"F17","v":""},{"$f":"H9","v":""},{"$f":"H17","v":""},{"$f":"SUM(A31:H31)","v":0}]
["Other Components (800 Points)",null,null,null,null,null,null,null,"Grand Total Points"]
["Graduation",null,"Acceleration Courses",null,"College Readiness",null,"US History Performance","Total Points"]
["All","At-Risk","Participation","Performance","Reading","Math"]
[null,null,null,null,null,null,{"$f":"G26","v":""},{"$f":"SUM(A35:G35)","v":0},{"$f":"SUM(I31,H35)","v":0}]
[null,null,null,null,null,"School Grade",{"$f":"IF(OR(I35=0,I35=\"\",A35=\"\",B35=\"\",C35=\"\",D35=\"\",E35=\"\",F35=\"\",G35=\"\",H35=\"\"),\"Missing some data\",VLOOKUP(I35,'SG Scale'!$A$16:$B$20,2,TRUE))","v":"Missing some data"},"Note:  Type in your estimate value of the Other Components in the space provided."]
["School Grade Scale Score Points"]
["A","B","C","D","F"]
["1120-1600","1040-1119","880-1039","800-879","0-799"]

{"sheet":"SG Scale","index":4,"n_rows":27,"n_cols":3,"rows_kept":27,"cut":false,"hidden":true,"merged":[]}
["800 Points","Grade"]
[0,"F"]
[395,"D",{"$f":"A3/800","v":0.49375000000000002}]
[435,"C",{"$f":"A4/800","v":0.54374999999999996}]
[495,"B",0.61875000000000002]
[525,"A",0.65625]
[]
["900 Points"]
[0,"F"]
[445,"D",{"$f":"A10/900","v":0.49444444444444446}]
[490,"C",{"$f":"A11/900","v":0.5444444444444444}]
[560,"B",0.62222222222222223]
[590,"A",0.65555555555555556]
[]
["1600 points"]
[0,"F"]
[800,"D",{"$f":"A17/1600","v":0.5}]
[880,"C",{"$f":"A18/1600","v":0.55000000000000004}]
[1040,"B",0.65]
[1120,"A",0.7]
[]
["1700 points"]
[null,"F"]
[null,"D",{"$f":"A24/1700","v":0}]
[null,"C",{"$f":"A25/1700","v":0}]
[null,"B",0]
[null,"A",0]

{"sheet":"SchList","index":5,"n_rows":474,"n_cols":3,"rows_kept":474,"cut":false,"hidden":true,"merged":[]}
["S_SCHOOL_NUM","Click here and select school from the drop-down arrow at right","S_ACCESS_CENTER"]
["6082","ACADEMIR CHARTER SCHOOL MIDDLE","7"]
["0410","ACADEMIR CHARTER SCHOOL WEST","7"]
["8019","ACADEMY FOR COMMUNITY ED","4"]
["5044","ACADEMY FOR INT'L EDUCATION CH","7"]
["7022","ACADEMY OF ARTS AND MINDS","7"]
["3191","ADA MERRITT K-8 CENTER","4"]
["3026","ADVANTAGE ACAD AT SUMMERVILLE","7"]
["3027","ADVANTAGE ACAD AT WATERSTONE","7"]
["3025","ADVANTAGE ACADEMY SANTA FE","7"]
["4071","AGENORIA S. PASCHAL/OLINDA EL","4"]
["0041","AIR BASE ELEMENTARY","5"]
["6011","ALLAPATTAH MIDDLE","6"]
["7048","ALONZO & TRACY MOURNING SH","1"]
["5410","ALPHA CHARTER OF EXCELLENCE","7"]
["8017","ALTERNATIVE OUTREACH PROGRAM","8"]
["8014","ALTERNATIVE OUTREACH-EXT. YR","8"]
["1521","AMELIA EARHART ELEMENTARY","1"]
["7011","AMERICAN SENIOR","1"]
["6023","ANDOVER MIDDLE SCHOOL","1"]
["0341","ARCH CREEK ELEMENTARY SCHOOL","1"]
["0510","ARCHIMEDEAN ACADEMY","7"]
["6006","ARCHIMEDEAN CONSERVATORY","7"]
["7265","ARCHIMEDEAN UPPER CONSERV CHAR","7"]
["0101","ARCOLA LAKE ELEMENTARY","4"]
["7351","ARTHUR AND POLLY MAYS CONSERVA","5"]
["6021","ARVIDA MIDDLE SCHOOL","5"]
["6070","ASPIRA EUGENIO MARIA DE HOSTOS","7"]
["6020","ASPIRA RAUL A. MARTINEZ CHTR","7"]
["6060","ASPIRA SOUTH YOUTH LEADERSHIP","7"]
["0121","AUBURNDALE ELEMENTARY","4"]
["0950","AVENTURA CITY OF EXCELLENCE","7"]
["0231","AVENTURA WATERWAYS K-8 CENTER","1"]
["0161","AVOCADO ELEMENTARY","5"]
["0201","BANYAN ELEMENTARY","4"]
["7751","BARBARA GOLEMAN SENIOR HIGH","1"]
["3781","BARBARA HAWKINS ELEMENTARY","1"]
["0261","BEL-AIRE ELEMENTARY","5"]
["5022","BEN GAMLA CHARTER SCHL","7"]
["5021","BEN SHEPPARD ELEMENTARY","1"]
["2041","BENJAMIN FRANKLIN K-8 CENTER","4"]
["0271","BENT TREE ELEMENTARY","5"]
["0321","BISCAYNE ELEMENTARY","1"]
["0361","BISCAYNE GARDENS ELEMENTARY","6"]
["0441","BLUE LAKES ELEMENTARY","5"]
["0091","BOB GRAHAM EDUCATION CTR","1"]
["7791","BOOKER T. WASHINGTON SR. HIGH","6"]
["0451","BOWMAN ASHE/DOOLIN K-8 ACAD","5"]
["0461","BRENTWOOD ELEMENTARY","1"]
["2013","BRIDGEPREP ACAD GREATER MIAMI","7"]
["5020","BRIDGEPREP ACAD INTERAMERICAN","7"]
["3034","BRIDGEPREP ACAD VILLAGE GREEN","7"]
["2003","BRIDGEPREP ACADEMY SOUTH","7"]
["0521","BROADMOOR ELEMENTARY","4"]
["6031","BROWNSVILLE MIDDLE","6"]
["9732","BRUCIE BALL EDUCATIONAL CENTER","8"]
["0641","BUNCHE PARK ELEMENTARY","1"]
["0671","CALUSA ELEMENTARY","5"]
["0651","CAMPBELL DRIVE K-8 CENTER","5"]
["6061","CAMPBELL DRIVE MIDDLE","6"]
["0661","CARIBBEAN ELEMENTARY","6"]
["0681","CAROL CITY ELEMENTARY","6"]
["6051","CAROL CITY MIDDLE","6"]
["5901","CARRIE P MEEK/WESTVIEW K-8 CTR","4"]
["0331","CHAPMAN PARTNERSHIP ECC NORTH","4"]
["0351","CHAPMAN PARTNERSHIP ECC SOUTH","5"]
["5991","CHARLES DAVID WYCHE JR ELEM","6"]
["1401","CHARLES R. DREW K-8 CENTER","6"]
["6141","CHARLES R. DREW MIDDLE","6"]
["2331","CHARLES R. HADLEY ELEMENTARY","4"]
["7080","CHARTER HS OF THE AMERICAS","7"]
["1010","CHARTER SCHOOL AT WATERSTONE","7"]
["1691","CHRISTINA M. EVE ELEMENTARY","5"]
["0801","CITRUS GROVE ELEMENTARY","4"]
["6091","CITRUS GROVE MIDDLE SCHOOL","6"]
["7262","CITY OF HIALEAH EDUCATION ACAD","7"]
["0831","CLAUDE PEPPER ELEMENTARY","5"]
["0841","COCONUT GROVE ELEMENTARY","4"]
["3621","COCONUT PALM K-8 ACADEMY","5"]
["0861","COLONIAL DRIVE ELEMENTARY","5"]
["0881","COMSTOCK ELEMENTARY","4"]
["8121","COPE CENTER NORTH","4"]
["0961","CORAL GABLES PREPARATORY ACAD","4"]
["7071","CORAL GABLES SENIOR HIGH","4"]
["1001","CORAL PARK ELEMENTARY","4"]
["1041","CORAL REEF ELEMENTARY","5"]
["0070","CORAL REEF MONTESSORI ACAD CH","7"]
["7101","CORAL REEF SENIOR HIGH","5"]
["1081","CORAL TERRACE ELEMENTARY","4"]
["1121","CORAL WAY K-8 CENTER","4"]
["6611","COUNTRY CLUB MIDDLE SCHOOL","1"]
["1161","CRESTVIEW ELEMENTARY","1"]
["6111","CUTLER BAY ACAD - CUTLER RIDGE","5"]
["6081","CUTLER BAY ACAD OF ADV STUDIES","5"]
["1241","CUTLER RIDGE ELEMENTARY","5"]
["1281","CYPRESS ELEMENTARY","5"]
["1811","DANTE B. FASCELL ELEMENTARY","5"]
["1761","DAVID FAIRCHILD ELEMENTARY","4"]
["5005","DAVID LAWRENCE JR K-8 CENTER","1"]
["7081","DESIGN & ARCHITECTURE SENIOR","4"]
["1331","DEVON AIRE K-8 CENTER","5"]
["6040","DOCTORS CHARTER/MIAMI SHORES","7"]
["3030","DORAL ACADEMY","7"]
["6030","DORAL ACADEMY CHARTER MIDDLE","7"]
["7020","DORAL ACADEMY HIGH SCHOOL","7"]
["3029","DORAL ACADEMY OF TECHNOLOGY","7"]
["7009","DORAL PERFORMING ARTS ACADEMY","7"]
["8131","DOROTHY M WALLACE COPE CENTER","5"]
["3600","DOWNTOWN MIAMI CHARTER SCHOOL","7"]
["4511","DR GILBERT L. PORTER ELEM","5"]
["5861","DR H W MACK/W LITTLE RIVER K8","4"]
["4381","DR HENRY E PERRINE ACADEMY","5"]
["7141","DR MICHAEL M KROP SENIOR HIGH","1"]
["0122","DR ROLANDO ESPINOSA K-8","4"]
["5061","DR. CARLOS J FINLAY ELEMENTARY","5"]
["5981","DR. EDWARD L. WHIGHAM","5"]
["0211","DR. MANUEL C. BARREIRO ELEM","5"]
["4121","DR. ROBERT B. INGRAM EL","6"]
["5381","E.W.F. STIRRUP ELEMENTARY","4"]
["1561","EARLINGTON HEIGHTS ELEMENTARY","6"]
["4070","EARLY BEGINNINGS ACADEMY-CIVIC","7"]
["1601","EDISON PARK K-8 CENTER","4"]
["1641","EMERSON ELEMENTARY","4"]
["2351","ENEIDA MASSAS HARTNER ELEM","4"]
["5051","ERNEST R GRAHAM K-8 CENTER","1"]
["4651","ETHEL F BECKFORD/RICHMOND ELEM","6"]
["0251","ETHEL KOGER BECKHAM ELEMENTARY","5"]
["0071","EUGENIA B. THOMAS K-8 CENTER","4"]
["1721","EVERGLADES K-8 CENTER","4"]
["7060","EVERGLADES PREP ACADEMY HIGH","7"]
["5006","EVERGLADES PREPARATORY ACADEMY","7"]
["5032","EXCELSIOR CHARTER ACADEMY","7"]
["5029","EXCELSIOR LANGUAGE ACADEMY K-8","7"]
["1801","FAIRLAWN ELEMENTARY","4"]
["7781","FELIX VARELA SENIOR HIGH","5"]
["0761","FIENBERG/FISHER K-8 CENTER","1"]
["1841","FLAGAMI ELEMENTARY","4"]
["1921","FLAMINGO ELEMENTARY","1"]
["2001","FLORIDA CITY ELEMENTARY","5"]
["6010","FLORIDA INTERNATIONAL ACADEMY","7"]
["3024","FLORIDA INTERNATIONAL EL ACAD","7"]
["5561","FRANCES S. TUCKER ELEMENTARY","4"]
["3101","FRANK C. MARTIN K-8 CENTER","5"]
["1361","FREDERICK DOUGLASS ELEMENTARY","6"]
["2081","FULFORD ELEMENTARY","1"]
["7051","G. HOLMES BRADDOCK SENIOR HIGH","5"]
["4031","GATEWAY ENVIRONMENTAL K-8","5"]
["6071","GEORGE WASHINGTON CARVER","4"]
["0721","GEORGE WASHINGTON CARVER ELEM","4"]
["4801","GERTRUDE EDELMAN/SABAL PALM EL","1"]
["2060","GIBSON CHARTER SCHOOL","7"]
["6211","GLADES MIDDLE","5"]
["2021","GLORIA FLOYD ELEMENTARY","5"]
["2161","GOLDEN GLADES ELEMENTARY","6"]
["0311","GOULDS ELEMENTARY","5"]
["2241","GRATIGNY ELEMENTARY","6"]
["7067","GREEN SPRINGS HIGH SCHOOL","7"]
["2261","GREENGLADE ELEMENTARY","5"]
["2281","GREYNOLDS PARK ELEMENTARY","1"]
["2321","GULFSTREAM ELEMENTARY","5"]
["6221","HAMMOCKS MIDDLE","5"]
["4491","HENRY E.S. REEVES ELEMENTARY","4"]
["6171","HENRY H. FILER MIDDLE","1"]
["1881","HENRY M. FLAGLER ELEMENTARY","4"]
["5831","HENRY S. WEST LABORATORY SCHL","4"]
["6001","HERBERT A. AMMONS MIDDLE","5"]
["2361","HIALEAH ELEMENTARY","4"]
["2111","HIALEAH GARDENS ELEMENTARY","1"]
["6751","HIALEAH GARDENS MIDDLE SCHOOL","1"]
["7191","HIALEAH GARDENS SENIOR","1"]
["6231","HIALEAH MIDDLE","1"]
["7111","HIALEAH SENIOR","1"]
["7131","HIALEAH-MIAMI LAKES SENIOR","1"]
["2401","HIBISCUS ELEMENTARY","1"]
["6241","HIGHLAND OAKS MIDDLE","1"]
["1014","HIVE PREPARATORY SCHOOL","7"]
["2501","HOLMES ELEMENTARY","6"]
["6251","HOMESTEAD MIDDLE","6"]
["7151","HOMESTEAD SENIOR HIGH","6"]
["6411","HORACE MANN MIDDLE","4"]
["6441","HOWARD D. MCMILLAN MIDDLE","5"]
["2541","HOWARD DRIVE ELEMENTARY","5"]
["5141","HUBERT O. SIBLEY K-8 CENTER","1"]
["5384","IMATER ACADEMY","7"]
["6014","IMATER ACADEMY MIDDLE SCHOOL","7"]
["7090","IMATER PREP ACADEMY HIGH","7"]
["9731","INSTRUCTIONAL SYSTEMWIDE","8"]
["7030","INTEGRATED ACADEMICS (SIATECH)","7"]
["7571","INTL STUDIES PREP ACADEMY","4"]
["6045","INTL. STUDIES CHARTER MIDDLE","7"]
["7007","INTL. STUDIES CHARTER SENIOR","7"]
["7581","IPREPARATORY ACADEMY","4"]
["4391","IRVING & BEATRICE PESKOE K-8","5"]
["2004","ISAAC ACADEMY K-8","7"]
["2151","JACK D. GORDON ELEMENTARY","5"]
["0481","JAMES H. BRIGHT/JW JOHNSON ES","1"]
["8101","JAN MANN OPPORTUNITY SCHOOL","1"]
["4691","JANE ROBERTS K-8 CENTER","5"]
["3021","JESSE J MCCRARY JR ELEMENTARY","6"]
["2341","JOE HALL ELEMENTARY","5"]
["2181","JOELLA C. GOOD ELEMENTARY","1"]
["7121","JOHN A FERGUSON SENIOR HIGH","5"]
["6301","JOHN F. KENNEDY MIDDLE","1"]
["1481","JOHN G. DUPUIS ELEMENTARY","1"]
["5101","JOHN I. SMITH K-8 CENTER","4"]
["6771","JORGE MAS CANOSA MIDDLE","5"]
["6361","JOSE DE DIEGO MIDDLE SCHOOL","6"]
["7291","JOSE MARTI MAST 6-12 ACADEMY","1"]
["6083","JUST ARTS AND MANAGEMENT CMS","7"]
["8141","JUVENILE JUSTICE CENTER","8"]
["4401","KELSEY L. PHARR ELEMENTARY","6"]
["2641","KENDALE ELEMENTARY","5"]
["2651","KENDALE LAKES ELEMENTARY","5"]
["2661","KENSINGTON PARK ELEMENTARY","4"]
["2701","KENWOOD K-8 CENTER","5"]
["2741","KEY BISCAYNE K-8 CENTER","4"]
["7050","KEYS GATE CHARTER HIGH SCHL","7"]
["3610","KEYS GATE CHARTER SCHOOL","7"]
["2781","KINLOCH PARK ELEMENTARY","4"]
["6331","KINLOCH PARK MIDDLE","4"]
["2801","LAKE STEVENS ELEMENTARY","1"]
["6351","LAKE STEVENS MIDDLE","1"]
["2821","LAKEVIEW ELEMENTARY","4"]
["6921","LAMAR LOUISE CURRY MIDDLE SCH","5"]
["2941","LAURA C. SAUNDERS ELEMENTARY","5"]
["7033","LAW ENFORCEMENT OFFICERS HS","4"]
["6008","LAWRENCE ACADEMY MIDDLE","7"]
["7036","LAWRENCE ACADEMY SENIOR","7"]
["6161","LAWTON CHILES MIDDLE SCHOOL","1"]
["7066","LBA CONSTR & BUS MGMT ACAD","7"]
["2881","LEEWOOD K-8 CENTER","5"]
["2901","LEISURE CITY K-8 CENTER","5"]
["0081","LENORA B. SMITH ELEMENTARY","6"]
["2981","LIBERTY CITY ELEMENTARY","6"]
["1681","LILLIE C. EVANS K-8 CENTER","4"]
["5007","LINCOLN-MARTI CHARTER HIALEAH","7"]
["5043","LINCOLN-MARTI CS INT'L CAMPUS","7"]
["5025","LINCOLN-MARTI CS LITTLE HAVANA","7"]
["2911","LINDA LENTIN K-8 CENTER","1"]
["3041","LORAH PARK ELEMENTARY","4"]
["3061","LUDLAM ELEMENTARY","4"]
["3421","M.A. MILAM K-8 CENTER","1"]
["2581","MADIE IVES ELEMENTARY","1"]
["6391","MADISON MIDDLE SCHOOL","6"]
["5711","MAE WALTERS ELEMENTARY","1"]
["0073","MANDARIN LAKES K-8 CENTER","6"]
["7161","MARITIME & SCIENCE TECH ACAD","4"]
["1371","MARJORY STONEMAN DOUGLAS ELEM","5"]
["7031","MAST @ FIU BISCAYNE BAY CAMPUS","1"]
["7025","MATER ACAD HIGH (MIAMI BEACH)","7"]
["0100","MATER ACADEMY","7"]
["5047","MATER ACADEMY (MIAMI BEACH)","7"]
["5054","MATER ACADEMY AT MOUNT SINAI","7"]
["7160","MATER ACADEMY CHARTER HIGH","7"]
["6012","MATER ACADEMY CHARTER MIDDLE","7"]
["3100","MATER ACADEMY EAST CHARTER","7"]
["7037","MATER ACADEMY EAST HIGH SCHOOL","7"]
["6009","MATER ACADEMY EAST MIDDLE","7"]
["7024","MATER ACADEMY HIGH-INTL STUDIE","7"]
["7018","MATER ACADEMY LAKES HIGH SCH","7"]
["6033","MATER ACADEMY LAKES MIDDLE","7"]
["6047","MATER ACADEMY MIDDLE-INTL STUD","7"]
["1017","MATER ACADEMY OF INTL STUDIES","7"]
["5046","MATER BRICKELL PREP ACADEMY","7"]
["0312","MATER GARDENS ACADEMY","7"]
["6042","MATER GARDENS ACADEMY MIDDLE","7"]
["5045","MATER GROVE ACADEMY","7"]
["7014","MATER PERFORMING ARTS ACADEMY","7"]
["6997","MATER VIRTUAL ACADEMY CHARTER","7"]
["7062","MAVERICKS HIGH OF NORTH M-DADE","7"]
["7065","MAVERICKS HIGH OF SOUTH M-DADE","7"]
["0111","MAYA ANGELOU ELEMENTARY","4"]
["3141","MEADOWLANE ELEMENTARY","1"]
["7171","MED ACAD SCIENCE & TECHNOLOGY","5"]
["3181","MELROSE ELEMENTARY","4"]
["7059","MIAMI ARTS CHARTER","7"]
["7201","MIAMI BEACH SENIOR HIGH","1"]
["7231","MIAMI CAROL CITY SENIOR HIGH","6"]
["7251","MIAMI CENTRAL SENIOR HIGH","6"]
["4000","MIAMI CHILDREN'S MUSEUM","7"]
["7058","MIAMI COMMUNITY CH HIGH SCHOOL","7"]
["6048","MIAMI COMMUNITY CHARTER MIDDLE","7"]
["0102","MIAMI COMMUNITY CHARTER SCHOOL","7"]
["7271","MIAMI CORAL PARK SENIOR HIGH","4"]
["6481","MIAMI EDISON MIDDLE","6"]
["7301","MIAMI EDISON SENIOR HIGH","6"]
["3241","MIAMI GARDENS ELEMENTARY","1"]
["3261","MIAMI HEIGHTS ELEMENTARY","5"]
["7341","MIAMI JACKSON SENIOR HIGH","6"]
["7361","MIAMI KILLIAN SENIOR HIGH","5"]
["7391","MIAMI LAKES EDUCATIONAL CENTER","1"]
["3281","MIAMI LAKES K-8 CENTER","1"]
["6501","MIAMI LAKES MIDDLE","1"]
["7631","MIAMI MACARTHUR SOUTH","5"]
["7381","MIAMI NORLAND SENIOR HIGH","6"]
["7411","MIAMI NORTHWESTERN SENIOR HIGH","6"]
["7431","MIAMI PALMETTO SENIOR HIGH","5"]
["3301","MIAMI PARK ELEMENTARY","6"]
["7461","MIAMI SENIOR HIGH","4"]
["3341","MIAMI SHORES ELEMENTARY","4"]
["7731","MIAMI SOUTHRIDGE SENIOR HIGH","6"]
["3381","MIAMI SPRINGS ELEMENTARY","4"]
["6521","MIAMI SPRINGS MIDDLE","4"]
["7511","MIAMI SPRINGS SENIOR HIGH","4"]
["7531","MIAMI SUNSET SENIOR HIGH","5"]
["7001","MIAMI-DADE ONLINE ACADEMY 7001","8"]
["3501","MORNINGSIDE K-8 ACADEMY","6"]
["3581","MYRTLE GROVE K-8 CENTER","1"]
["5131","N. DADE CTR FOR MODERN LANG","1"]
["5971","NATHAN YOUNG ELEMENTARY","6"]
["3661","NATURAL BRIDGE ELEMENTARY","1"]
["6541","NAUTILUS MIDDLE","1"]
["0921","NEVA KING COOPER EDUCATIONAL","5"]
["7901","NEW WORLD SCHOOL OF THE ARTS","4"]
["3701","NORLAND ELEMENTARY","1"]
["6571","NORLAND MIDDLE","1"]
["0125","NORMA BUTLER BOSSARD ELEM","5"]
["0092","NORMAN S. EDELCUP/SUNNY ISLES","1"]
["3741","NORTH BEACH ELEMENTARY","1"]
["3821","NORTH COUNTY K-8 CENTER","1"]
["6591","NORTH DADE MIDDLE","6"]
["7068","NORTH GARDENS HIGH SCHOOL","7"]
["3861","NORTH GLADE ELEMENTARY","1"]
["3901","NORTH HIALEAH ELEMENTARY","1"]
["7541","NORTH MIAMI BEACH SENIOR HIGH","6"]
["3941","NORTH MIAMI ELEMENTARY","1"]
["6631","NORTH MIAMI MIDDLE","6"]
["7591","NORTH MIAMI SENIOR HIGH","6"]
["7069","NORTH PARK HIGH SCHOOL","7"]
["3981","NORTH TWIN LAKES ELEMENTARY","1"]
["4001","NORWOOD ELEMENTARY","1"]
["4021","OAK GROVE ELEMENTARY","1"]
["4061","OJUS ELEMENTARY","1"]
["2521","OLIVER HOOVER ELEMENTARY","5"]
["4091","OLYMPIA HEIGHTS ELEMENTARY","5"]
["4171","ORCHARD VILLA ELEMENTARY","6"]
["5010","OXFORD ACADEMY OF MIAMI","7"]
["7032","PALM GLADES PREP HIGH SCHOOL","7"]
["3032","PALM GLADES PREPATORY ACADEMY","7"]
["4241","PALM LAKES ELEMENTARY","1"]
["4261","PALM SPRINGS ELEMENTARY","1"]
["6681","PALM SPRINGS MIDDLE","1"]
["4281","PALM SPRINGS NORTH ELEMENTARY","1"]
["4221","PALMETTO ELEMENTARY","5"]
["6701","PALMETTO MIDDLE","5"]
["4301","PARKVIEW ELEMENTARY","1"]
["4341","PARKWAY ELEMENTARY","6"]
["6721","PARKWAY MIDDLE","6"]
["1441","PAUL LAURENCE DUNBAR K-8 CTR","6"]
["6041","PAUL W. BELL MIDDLE","5"]
["5931","PHILLIS WHEATLEY ELEMENTARY","6"]
["3431","PHYLLIS RUTH MILLER ELEMENTARY","4"]
["4441","PINE LAKE ELEMENTARY","5"]
["4461","PINE VILLA ELEMENTARY","6"]
["5048","PINECREST ACADEMY (NORTH)","7"]
["7053","PINECREST ACADEMY CHARTER HIGH","7"]
["6022","PINECREST ACADEMY CHARTER MIDD","7"]
["6003","PINECREST ACADEMY MIDDLE NORTH","7"]
["0342","PINECREST ACADEMY SOUTH CAMPUS","7"]
["5049","PINECREST COVE ACADEMY","7"]
["4421","PINECREST ELEMENTARY","5"]
["4634","PINECREST PALM ACADEMY","7"]
["0600","PINECREST PREP ACADEMY","7"]
["4501","POINCIANA PARK ELEMENTARY","6"]
["6741","PONCE DE LEON MIDDLE","4"]
["9013","PRE K - INTERVENTION","8"]
["4081","PRIMARY LEARNING CENTER","4"]
["4541","RAINBOW PARK ELEMENTARY","1"]
["6005","RAMZ ACAD MIDDLE MIAMI CAMPUS","7"]
["3035","RAMZ ACADEMY ELEM MIAMI CAMPUS","7"]
["4581","REDLAND ELEMENTARY","5"]
["6761","REDLAND MIDDLE","6"]
["4611","REDONDO ELEMENTARY","5"]
["0400","RENAISSANCE ELEMENTARY CHARTER","7"]
["6028","RENAISSANCE MIDDLE CHARTER","7"]
["2006","RICHARD ALLEN LEADERSHIP ACAD","7"]
["6781","RICHMOND HEIGHTS MIDDLE","5"]
["6049","RIVER CITIES COMMUNITY CHARTER","7"]
["4681","RIVERSIDE ELEMENTARY","4"]
["6801","RIVIERA MIDDLE","5"]
["7371","ROBERT MORGAN EDUCATIONAL CTR","5"]
["8151","ROBERT RENICK EDUCATION CTR","1"]
["3541","ROBERT RUSSA MOTON ELEMENTARY","5"]
["4721","ROCKWAY ELEMENTARY","4"]
["6821","ROCKWAY MIDDLE","4"]
["7241","RONALD W REAGAN/DORAL SENIOR","4"]
["4741","ROYAL GREEN ELEMENTARY","5"]
["4761","ROYAL PALM ELEMENTARY","5"]
["6121","RUBEN DARIO MIDDLE","4"]
["0241","RUTH K BROAD/BAY HARBOR K-8","1"]
["8181","RUTH OWENS KRUSE' EDUC CENTER","5"]
["4841","SANTA CLARA ELEMENTARY","4"]
["7091","SCHOOL FOR ADV STUDIES SOUTH","5"]
["7551","SCHOOL FOR ADV STUDIES-HOMESTD","5"]
["7061","SCHOOL FOR ADVANCED STUDIES NO","5"]
["7041","SCHOOL FOR ADVANCED STUDIES WC","5"]
["4881","SCOTT LAKE ELEMENTARY","1"]
["4921","SEMINOLE ELEMENTARY","4"]
["4961","SHADOWLAWN ELEMENTARY","4"]
["5001","SHENANDOAH ELEMENTARY","4"]
["6841","SHENANDOAH MIDDLE","4"]
["5041","SILVER BLUFF ELEMENTARY","4"]
["5081","SKYWAY ELEMENTARY","1"]
["5121","SNAPPER CREEK ELEMENTARY","5"]
["4012","SOMERSET ACAD AT SILVER PALMS","7"]
["7034","SOMERSET ACAD HIGH SOUTH-HMSTD","7"]
["6043","SOMERSET ACAD MIDDLE (C-PALMS)","7"]
["6053","SOMERSET ACAD MIDDLE (S-MIAMI)","7"]
["0520","SOMERSET ACADEMY","7"]
["5062","SOMERSET ACADEMY BAY","7"]
["6128","SOMERSET ACADEMY BAY MIDDLE","7"]
["0339","SOMERSET ACADEMY CHARTER ELEM","7"]
["7042","SOMERSET ACADEMY CHARTER HIGH","7"]
["2007","SOMERSET ACADEMY ELEMENTARY","7"]
["7038","SOMERSET ACADEMY HIGH (SOUTH)","7"]
["6004","SOMERSET ACADEMY MIDDLE","7"]
["6013","SOMERSET ACADEMY MIDDLE-SOUTH","7"]
["0332","SOMERSET ACADEMY(SILVER PALMS)","7"]
["2012","SOMERSET ARTS ACADEMY","7"]
["5008","SOMERSET GABLES ACADEMY","7"]
["3033","SOMERSET OAKS ACADEMY","7"]
["5003","SOUTH DADE MIDDLE SCHOOL","5"]
["7701","SOUTH DADE SENIOR HIGH","5"]
["1070","SOUTH FLORIDA AUTISM CHARTER","7"]
["5201","SOUTH HIALEAH ELEMENTARY","4"]
["5281","SOUTH MIAMI HEIGHTS ELEMENTARY","5"]
["5241","SOUTH MIAMI K-8 CENTER","4"]
["6881","SOUTH MIAMI MIDDLE SCHOOL","4"]
["7721","SOUTH MIAMI SENIOR HIGH","4"]
["5091","SOUTH POINTE ELEMENTARY","1"]
["5321","SOUTHSIDE ELEMENTARY","4"]
["7741","SOUTHWEST MIAMI SENIOR HIGH","5"]
["6861","SOUTHWOOD MIDDLE","5"]
["2191","SPANISH LAKE ELEMENTARY","1"]
["6015","SPORTS LEADERSHIP AND MGMT CMS","7"]
["7016","SPORTS LEADERSHIP OF MIAMI CHS","7"]
["5361","SPRINGVIEW ELEMENTARY","4"]
["7015","STELLAR LEADERSHIP ACADEMY","7"]
["0072","SUMMERVILLE CHARTER SCHOOL","7"]
["5401","SUNSET ELEMENTARY","4"]
["5421","SUNSET PARK ELEMENTARY","5"]
["5431","SWEETWATER ELEMENTARY","4"]
["5441","SYLVANIA HEIGHTS ELEMENTARY","4"]
["8016","TAP PROGRAM FACILITIES","8"]
["7029","TERRA ENVIRONMENTAL RESEARCH","5"]
["2531","THENA C. CROWDER EARLY CHLDHD","8"]
["6281","THOMAS JEFFERSON MIDDLE","1"]
["8021","TITLE I MIGRANT EDUC PROGRAM","4"]
["3051","TOUSSAINT L'OUVERTURE ELEM","4"]
["5481","TREASURE ISLAND ELEMENTARY","1"]
["5521","TROPICAL ELEMENTARY","5"]
["5601","TWIN LAKES ELEMENTARY","1"]
["0401","VAN E. BLANTON ELEMENTARY","4"]
["5641","VILLAGE GREEN ELEMENTARY","5"]
["5671","VINELAND K-8 CENTER","5"]
["2441","VIRGINIA A BOONE/HIGHLAND OAKS","1"]
["6901","W. R. THOMAS MIDDLE","5"]
["0561","W.J. BRYAN ELEMENTARY","1"]
["3111","WESLEY MATTHEWS ELEMENTARY","5"]
["2371","WEST HIALEAH GARDENS ELEM","1"]
["5791","WEST HOMESTEAD ELEMENTARY","5"]
["6961","WEST MIAMI MIDDLE","4"]
["7049","WESTLAND HIALEAH SENIOR HIGH","1"]
["5951","WHISPERING PINES ELEMENTARY","5"]
["0771","WILLIAM A. CHAPMAN ELEMENTARY","5"]
["7601","WILLIAM H. TURNER TECHNICAL","4"]
["2891","WILLIAM LEHMAN ELEMENTARY","5"]
["5961","WINSTON PARK K-8 CENTER","5"]
["7056","YOUNG MENS PREPARATORY ACADEMY","4"]
["7055","YOUNG WOMEN'S PREPARATORY ACAD","4"]
["1020","YOUTH CO-OP CHARTER SCHOOL","7"]
["7070","YOUTH CO-OP PREP HIGH SCHOOL","7"]
["6052","ZELDA GLAZER MIDDLE SCHOOL","5"]
["2511","ZORA NEALE HURSTON ELEMENTARY","5"]